Cogmind - Beta 15 @@@ ROGUE MODE // 2025.08.05 @ 18:31:12 Player: Skysub Result: Self-destructed Performance ------------- Evolutions (8) 4000 Regions Visited (11) 2200 Robots Destroyed (20) 100 Value Destroyed (426) 426 Prototype IDs (2) 40 Alien Tech Used (0) 0 Bonus (1834) 1834 TOTAL SCORE: 8600 Bonus ------- Pacifist 834 Entered DSFs 1000 Cogmind --------- Core Integrity 492/1450 Matter 157/300 Energy 99/100 System Corruption 4% Temperature Cool (0) Movement Core (50) Location -2/Research Parts ------- > --- POWER (3) -------- (None) > --- PROPULSION (8) --- (None) > --- UTILITY (10) ----- (None) > --- WEAPON (2) ------- (None) > --- INVENTORY (5) ---- Light Ion Engine Impulse Thruster Array Mini Grenade Launcher Scythe Peak State ------------ > --- POWER ------------ Micro Antimatter Reactor Micro Antimatter Reactor Micro Antimatter Reactor > --- PROPULSION ------- Impulse Thruster Q-thruster Q-thruster Q-thruster Q-thruster Q-thruster Q-thruster > --- UTILITY ---------- Power Amplifier Advanced Cooling System Advanced Coolant Injector Small Storage Unit Improved Sensor Array > --- WEAPON ----------- Scythe > --- INVENTORY -------- Impulse Thruster Array Advanced Kinecellerator Layered Heavy Armor Plating Mini Grenade Launcher Scythe [Rating: 108] Favorites ----------- Power Light Ion Engine Engine Light Ion Engine Reactor Micro Antimatter Reactor Propulsion Cooled Airjet Hover Unit Cooled Airjet Flight Unit Q-thruster Utility Improved Propulsion Shielding Device Improved Sensor Array Storage Small Storage Unit Processor Improved Signal Interpreter Protection Improved Propulsion Shielding Weapon Scythe Launcher Mini Grenade Launcher Impact Weapon Heavy Hammer Slashing Weapon Scythe Build | -11 -10 -9 -8 -7 -6 -6 -5 -4 -4 -3 -2 ------- Run | Yrd Mat Mat Mat Fac Fac DSF Fac Fac DSF Res Res Slots Evolved 16 | . . 2 2 2 2 . 2 2 . 2 2 Power 2 | . . . . 1 . . . . . 1 . Propulsion 6 | . . 2 . 1 . . 1 1 . 1 . Utility 8 | . . . 2 . 2 . 1 1 . . 2 Weapon . | . . . . . . . . . . . . Parts Attached 49 | . 1 2 1 10 2 1 3 . 1 11 17 Power 9 | . . . . 2 . . . . . 1 6 Engine 6 | . . . . 2 . . . . . 1 3 Core . | . . . . . . . . . . . . Reactor 3 | . . . . . . . . . . . 3 Propulsion 17 | . 1 . . 5 . . . . . 3 8 Treads . | . . . . . . . . . . . . Leg . | . . . . . . . . . . . . Wheel . | . . . . . . . . . . . . Hover 5 | . . . . 5 . . . . . . . Flight 12 | . 1 . . . . . . . . 3 8 Utility 19 | . . 2 1 2 2 . 3 . 1 5 3 Device 8 | . . . . . 1 . . . 1 4 2 Storage 1 | . . . . 1 . . . . . . . Processor 1 | . . . . . 1 . . . . . . Hackware . | . . . . . . . . . . . . Protection 9 | . . 2 1 1 . . 3 . . 1 1 Artifact . | . . . . . . . . . . . . Weapon 4 | . . . . 1 . 1 . . . 2 . Energy Gun . | . . . . . . . . . . . . Energy Cannon . | . . . . . . . . . . . . Ballistic Gun . | . . . . . . . . . . . . Ballistic Cannon . | . . . . . . . . . . . . Launcher 1 | . . . . . . . . . . 1 . Special Weapon . | . . . . . . . . . . . . Impact Weapon 1 | . . . . 1 . . . . . . . Slashing Weapon 2 | . . . . . . 1 . . . 1 . Piercing Weapon . | . . . . . . . . . . . . Special Melee Weapon . | . . . . . . . . . . . . Unidentified Prototypes 2 | . . . . 1 . . . . . 1 . Parts Lost 34 | . . . . . . . 5 . 2 11 16 Power 5 | . . . . . . . 1 . . 2 2 Propulsion 14 | . . . . . . . 1 . . 4 9 Utility 14 | . . . . . . . 3 . 2 5 4 Weapon 1 | . . . . . . . . . . . 1 Highest Loss Streak 15 | . . . . . . . 5 . 7 9 15 To Critical Strikes . | . . . . . . . . . . . . Average Backups 4 | 1 3 3 4 4 8 7 6 4 4 3 5 Power . | 1 2 2 2 . 1 1 1 1 1 . . Propulsion . | . . . . . 1 1 . 1 1 . . Utility 1 | . 1 1 2 1 5 3 2 . . . 2 Weapon 1 | . . . . 1 1 1 2 2 2 2 2 Tool/Special . | . . . . . . . . . . . . Unused Backups 3 | . . . . . . 2 1 . . . . Power 1 | . . . . . . 1 . . . . . Propulsion . | . . . . . . . . . . . . Utility 2 | . . . . . . 1 1 . . . . Weapon . | . . . . . . . . . . . . Tool/Special . | . . . . . . . . . . . . Average Slot Usage (%) 53 | . 10 19 27 71 80 93 88 68 64 55 44 Engine 5 | . . . . 11 13 13 11 5 5 3 2 Hover 14 | . . . . 30 33 33 29 26 26 13 . Flight 9 | . 10 11 9 1 . . 4 . . 10 19 Device 6 | . . . . . . 6 5 5 5 12 11 Storage 3 | . . . . 5 6 6 5 5 5 4 3 Protection 9 | . . 8 18 20 20 20 17 15 13 4 . Slashing Weapon 2 | . . . . . . 1 5 5 5 2 3 Peak Build Rating 108 | . 1 5 7 41 46 48 52 47 47 88 108 Average Rating 43 | . . 3 6 32 41 47 50 47 44 63 64 On Entrance 29 | . . 1 5 7 41 46 48 47 47 44 62 Naked Turns 27 | . 10 . . . . . . . . . 17 Heaviest Build 41 | . . 3 4 27 28 28 41 34 34 35 36 Greatest Support 60 | 3 4 4 4 41 41 41 41 41 41 41 60 Greatest Overweight (x) 4 | . . . . . . . . . . . 4 Average Overweight (x) . | . . . . . . . . . . . . Largest Inventory Capacity 8 | 5 5 5 5 8 8 8 8 8 8 8 8 Average Capacity 7 | 5 5 5 5 7 8 8 8 8 8 8 7 Most Carried 8 | 3 3 4 5 8 8 8 8 5 5 6 8 Average Carried 5 | 2 3 3 4 4 7 7 7 5 5 3 6 Final Capacity 8 | 5 5 5 5 8 8 8 8 8 8 8 5 Final Carried 8 | 3 3 4 5 8 6 8 5 5 5 6 5 Class Distribution -------------------- 86% | Mutant 13% | Sprinter Dominant Class ---------------- Mutant | -10/Materials Mutant | -9/Materials Mutant | -8/Materials Mutant | -7/Factory Mutant | -6/Factory Mutant | -6/DSF Mutant | -5/Factory Mutant | -4/Factory Mutant | -4/DSF Mutant | -3/Research Mutant | -2/Research Resources | -11 -10 -9 -8 -7 -6 -6 -5 -4 -4 -3 -2 ----------- Run | Yrd Mat Mat Mat Fac Fac DSF Fac Fac DSF Res Res Matter Collected 515 | 189 . . . 40 . . . . 2 163 121 Remotely . | . . . . . . . . . . . . Salvage Created 322 | . . . . 38 . . . . . 154 130 Parts 21 | . . . . . . . . . . 8 13 Haulers Intercepted . | . . . . . . . . . . . . Recyclers Shooed . | . . . . . . . . . . . . Parts Field Recycled . | . . . . . . . . . . . . Retrieved Matter . | . . . . . . . . . . . . Parts Self-Destructed . | . . . . . . . . . . . . Prevented . | . . . . . . . . . . . . Kills | -11 -10 -9 -8 -7 -6 -6 -5 -4 -4 -3 -2 ------- Run | Yrd Mat Mat Mat Fac Fac DSF Fac Fac DSF Res Res Combat Hostiles Destroyed 9 | . . . . . . . . . . 9 . AOE 9 | . . . . . . . . . . 9 . Classes Destroyed 4 | . . . . 2 . . . . . 2 . Worker 7 | . . . . 1 . . . . . 1 5 Builder 3 | . . . . 1 . . . . . . 2 Tunneler 1 | . . . . . . . . . . 1 . Swarmer 9 | . . . . . . . . . . 9 . Best Kill Streak 6 | . . . . 2 . . . . . 6 3 Combat Bots Only 5 | . . . . . . . . . . 5 . Max Kills in Single Turn 3 | . . . . 1 . . . . . 3 1 Gunslinging . | . . . . . . . . . . . . Exploded 3 | . . . . . . . . . . 3 . Melee . | . . . . . . . . . . . . Uniques/NPCs Destroyed . | . . . . . . . . . . . . Combat | -11 -10 -9 -8 -7 -6 -6 -5 -4 -4 -3 -2 -------- Run | Yrd Mat Mat Mat Fac Fac DSF Fac Fac DSF Res Res Hostile Shots Fired 503 | . 5 17 25 68 . 13 42 . 5 105 223 Missed 257 | . 5 9 15 37 . 10 14 . 1 52 114 Hits 246 | . . 8 10 31 . 3 28 . 4 53 109 Projectile 246 | . . 8 10 31 . 3 28 . 4 53 109 AOE 1 | . . . . . . 1 . . . . . Critical Strikes 8 | . . . . 2 . . 1 . 1 1 3 Actively Blocked 1 | . . . . 1 . . . . . . . Part Disruptions 1 | . . . . . . . . . . . 1 Damage Taken 5394 | . . 59 125 474 . 95 499 . 312 1367 2463 Core 1460 | . . 52 116 128 . . 35 . . 171 958 Absorbed by Shields . | . . . . . . . . . . . . Redirected to Shielding 220 | . . 4 5 91 . 32 88 . . . . Core Remaining (%) 92 | 100 100 87 78 81 . 100 96 . 100 86 . Volleys Fired 8 | . . . . . . . . . . 8 . Largest 1 | . . . . . . . . . . 1 . Hottest 30 | . . . . . . . . . . 30 . Shots Fired 8 | . . . . . . . . . . 8 . Gun . | . . . . . . . . . . . . Cannon . | . . . . . . . . . . . . Launcher 8 | . . . . . . . . . . 8 . Special . | . . . . . . . . . . . . Kinetic . | . . . . . . . . . . . . Thermal . | . . . . . . . . . . . . Explosive 8 | . . . . . . . . . . 8 . Electromagnetic . | . . . . . . . . . . . . Robot Hit Streak 4 | . . . . . . . . . . 4 . Robot Miss Streak 3 | . . . . . . . . . . 3 . Penetration Max . | . . . . . . . . . . . . Secondary Targets . | . . . . . . . . . . . . Shots Hit Robots 21 | . . . . 2 . . 1 . . 7 11 Core Hits 22 | . . . . 1 . . . . . 17 4 Critical Kills . | . . . . . . . . . . . . Critical Parts Destroyed . | . . . . . . . . . . . . Critical Strikes . | . . . . . . . . . . . . Melee Attacks 28 | . . . . 3 . . 1 . . 12 12 Impact 3 | . . . . 3 . . . . . . . Slashing 25 | . . . . . . . 1 . . 12 12 Piercing . | . . . . . . . . . . . . Sneak Attacks 14 | . . . . 2 . . 1 . . 2 9 Combat Hostiles . | . . . . . . . . . . . . Follow-up Attacks . | . . . . . . . . . . . . Damage Inflicted 2221 | . . . . 146 . . 64 . . 1336 675 Guns . | . . . . . . . . . . . . Cannons . | . . . . . . . . . . . . Explosions 1265 | . . . . . . . . . . 1265 . Melee 955 | . . . . 145 . . 64 . . 71 675 Ramming 1 | . . . . 1 . . . . . . . Kinetic . | . . . . . . . . . . . . Thermal . | . . . . . . . . . . . . Explosive 1265 | . . . . . . . . . . 1265 . Electromagnetic . | . . . . . . . . . . . . Impact 145 | . . . . 145 . . . . . . . Slashing 810 | . . . . . . . 64 . . 71 675 Piercing . | . . . . . . . . . . . . Highest Corruption 4 | . . . . 1 . . . . . . 4 Average Corruption 2 | . . . . 1 . . . . . . 2 Corruption Purged . | . . . . . . . . . . . . Corruption Blocked . | . . . . . . . . . . . . Overload Shots . | . . . . . . . . . . . . Overflow Damage 465 | . . . . 85 . . 24 . . 157 199 Projectiles . | . . . . . . . . . . . . Explosions 126 | . . . . . . . . . . 126 . Melee 339 | . . . . 85 . . 24 . . 31 199 Knockbacks 1 | . . . . 1 . . . . . . . Impact 1 | . . . . 1 . . . . . . . Kinetic . | . . . . . . . . . . . . Secondary . | . . . . . . . . . . . . Self-Inflicted Damage 76 | . . . . . . . . . . 76 . Shots 3 | . . . . . . . . . . 3 . Rammed 1 | . . . . 1 . . . . . . . Targets Rammed 1 | . . . . 1 . . . . . . . Kicked . | . . . . . . . . . . . . Crushed . | . . . . . . . . . . . . Highest Temperature 35 | . . . . 35 . . 4 . . . 11 Average Temperature 8 | . . . . 18 . . 4 . . . 4 Received Heat Transfer 417 | . . . 27 228 . . 81 . . 36 45 Siege Activations . | . . . . . . . . . . . . Martial Activations . | . . . . . . . . . . . . Shielding Activations . | . . . . . . . . . . . . Robots Disrupted . | . . . . . . . . . . . . Combat Hostiles . | . . . . . . . . . . . . Robots Corrupted 2 | . . . . 2 . . . . . . . Combat Hostiles . | . . . . . . . . . . . . Parts Fried 4 | . . . . 4 . . . . . . . Impact Corruptions 4 | . . . . 4 . . . . . . . Robots Melted . | . . . . . . . . . . . . Combat Hostiles . | . . . . . . . . . . . . Parts Melted . | . . . . . . . . . . . . Heat Transferred . | . . . . . . . . . . . . Parts Sabotaged . | . . . . . . . . . . . . Parts Stolen . | . . . . . . . . . . . . Parts Stripped . | . . . . . . . . . . . . Power Chain Reactions . | . . . . . . . . . . . . Alert | -11 -10 -9 -8 -7 -6 -6 -5 -4 -4 -3 -2 ------- Run | Yrd Mat Mat Mat Fac Fac DSF Fac Fac DSF Res Res Maximum Alert Level 1 | . . . . . . . . . . 1 1 Low Security (%) 96 | 100 100 100 100 100 100 100 100 100 100 91 95 Level 1 3 | . . . . . . . . . . 8 4 Level 2 . | . . . . . . . . . . . . Level 3 . | . . . . . . . . . . . . Level 4 . | . . . . . . . . . . . . Level 5 . | . . . . . . . . . . . . High Security . | . . . . . . . . . . . . Max Security . | . . . . . . . . . . . . Peak Influence 305 | . 5 80 40 59 28 19 88 13 12 243 305 Initial 113 | . . . 33 13 28 19 9 13 12 . 113 Average 61 | . . 16 32 15 28 19 30 13 4 82 144 Influence Increases 1198 | . 5 90 17 99 . . 108 5 . 422 452 Destroy 0b10 Robot/C 180 | . . . . . . . . . . 180 . Destroy 0b10 Robot/NC 55 | . . . . 10 . . . . . 10 35 Destroy Leader 20 | . . . . . . . . . . 20 . Successful Hack 144 | . 5 . 17 14 . . 33 5 . 28 42 Disable Machine 15 | . . . . 15 . . . . . . . Destroy Structure 64 | . . . . . . . . . . 64 . Partial Spotted 90 | . . . . . . . 15 . . 15 60 Lose Combat Pursuer 630 | . . 90 . 60 . . 60 . . 105 315 Influence Decreases 893 | . 5 10 67 70 31 9 99 15 18 220 349 Entered New Map 224 | . . . 47 17 31 9 10 15 6 . 89 Time Decay 337 | . 5 10 20 53 . . 39 . . 110 100 Lost Part 332 | . . . . . . . 50 . 12 110 160 Squads Dispatched 22 | . 1 . 2 1 . 1 3 1 . 7 6 Investigation 12 | . 1 . 2 . . . 2 1 . 2 4 Extermination 2 | . . . . . . . . . . 1 1 Reinforcement 8 | . . . . 1 . 1 1 . . 4 1 Assault . | . . . . . . . . . . . . Garrison . | . . . . . . . . . . . . Intercept . | . . . . . . . . . . . . Searches Triggered . | . . . . . . . . . . . . Construction Impeded 2 | . . . . . . . 1 . . 1 . Haulers Reinforced . | . . . . . . . . . . . . Active Scanning Responses . | . . . . . . . . . . . . Cargo Convoy Interrupts . | . . . . . . . . . . . . Stealth | -11 -10 -9 -8 -7 -6 -6 -5 -4 -4 -3 -2 --------- Run | Yrd Mat Mat Mat Fac Fac DSF Fac Fac DSF Res Res Distress Signals 10 | . . 1 1 1 . . . . . 1 6 Communications Jammed . | . . . . . . . . . . . . Distress Signals . | . . . . . . . . . . . . Times Spotted 132 | . 2 12 12 12 . 4 14 . 1 24 51 Peak Tracking Total 36 | . 2 6 12 7 . 5 11 . 1 9 36 Tactical Retreats 12 | . . 1 . 2 . . 1 . . 4 4 Traps | -11 -10 -9 -8 -7 -6 -6 -5 -4 -4 -3 -2 ------- Run | Yrd Mat Mat Mat Fac Fac DSF Fac Fac DSF Res Res Traps Triggered 6 | . . . . 3 . 1 1 . . 1 . Indirectly . | . . . . . . . . . . . . Trap Hack Attempts . | . . . . . . . . . . . . Triggered . | . . . . . . . . . . . . Disarmed . | . . . . . . . . . . . . Reprogrammed . | . . . . . . . . . . . . Reused . | . . . . . . . . . . . . Traps Extracted . | . . . . . . . . . . . . Installed . | . . . . . . . . . . . . Triggered . | . . . . . . . . . . . . Machines | -11 -10 -9 -8 -7 -6 -6 -5 -4 -4 -3 -2 ---------- Run | Yrd Mat Mat Mat Fac Fac DSF Fac Fac DSF Res Res Machines Disabled 1 | . . . . 1 . . . . . . . Max in Single Turn 1 | . . . . 1 . . . . . . . Machines Repaired . | . . . . . . . . . . . . Machines Dismantled . | . . . . . . . . . . . . Machines Sabotaged . | . . . . . . . . . . . . Overloaded Fab Kills . | . . . . . . . . . . . . Hacking | -11 -10 -9 -8 -7 -6 -6 -5 -4 -4 -3 -2 --------- Run | Yrd Mat Mat Mat Fac Fac DSF Fac Fac DSF Res Res Machines Accessed 23 | . 1 1 3 2 1 . 5 1 . 5 4 Terminals 20 | . 1 1 3 1 1 . 4 1 . 5 3 Fabricators 1 | . . . . . . . 1 . . . . Repair Stations . | . . . . . . . . . . . . Recycling Units 1 | . . . . 1 . . . . . . . Scanalyzers . | . . . . . . . . . . . . Garrison Access 1 | . . . . . . . . . . . 1 Total Hacks 60 | . 4 2 9 4 4 . 8 3 . 12 14 Successful 20 | . 2 . 3 2 1 . 4 1 . 3 4 Failed 40 | . 2 2 6 2 3 . 4 2 . 9 10 Catastrophic 12 | . 1 1 3 1 . . 1 . . 2 3 Database Lockouts . | . . . . . . . . . . . . Manual 38 | . 3 2 9 3 . . 7 . . 9 5 Terminals 55 | . 4 2 9 3 4 . 7 3 . 12 11 Fabricators 1 | . . . . . . . 1 . . . . Repair Stations . | . . . . . . . . . . . . Recycling Units 1 | . . . . 1 . . . . . . . Scanalyzers . | . . . . . . . . . . . . Garrison Access 3 | . . . . . . . . . . . 3 Terminal Hacks 7 | . 1 . 1 . 1 . 1 1 . 1 1 Open DSF 3 | . . . . . 1 . 1 1 . . . Level Access Points 2 | . . . 1 . . . . . . 1 . Registered Components 1 | . . . . . . . . . . . 1 Zone Layout 1 | . 1 . . . . . . . . . . Fabricator Hacks . | . . . . . . . . . . . . Repair Station Hacks . | . . . . . . . . . . . . Recycling Unit Hacks 1 | . . . . 1 . . . . . . . Report Inventory 1 | . . . . 1 . . . . . . . Scanalyzer . | . . . . . . . . . . . . Garrison Access Hacks . | . . . . . . . . . . . . Unauthorized Hacks 12 | . 1 . 2 1 . . 3 . . 2 3 Terminals 11 | . 1 . 2 1 . . 2 . . 2 3 Botnet 11 | . 1 . 2 1 . . 2 . . 2 3 Fabricators 1 | . . . . . . . 1 . . . . Fabnet 1 | . . . . . . . 1 . . . . Repair Stations . | . . . . . . . . . . . . Recycling Units . | . . . . . . . . . . . . Scanalyzers . | . . . . . . . . . . . . Garrison Access . | . . . . . . . . . . . . Data Cores Recovered . | . . . . . . . . . . . . Used . | . . . . . . . . . . . . Hacking Detections 20 | . 1 1 3 1 1 . 3 1 . 5 4 Full Trace Events 11 | . 1 . 2 . . . 1 1 . 2 4 Feedback Events . | . . . . . . . . . . . . Feedback Blocked . | . . . . . . . . . . . . Robot Schematics Acquired . | . . . . . . . . . . . . Robots Built . | . . . . . . . . . . . . Authchips . | . . . . . . . . . . . . Time . | . . . . . . . . . . . . Total Robot Build Rating . | . . . . . . . . . . . . Part Schematics Acquired . | . . . . . . . . . . . . Parts Built . | . . . . . . . . . . . . Authchips . | . . . . . . . . . . . . Time . | . . . . . . . . . . . . Total Part Build Rating . | . . . . . . . . . . . . Parts Repaired . | . . . . . . . . . . . . Time . | . . . . . . . . . . . . Parts Recycled . | . . . . . . . . . . . . Recycled Matter . | . . . . . . . . . . . . Retrieved Matter . | . . . . . . . . . . . . Retrieved Components . | . . . . . . . . . . . . Parts Scanalyzed . | . . . . . . . . . . . . Part Schematics Acquired . | . . . . . . . . . . . . Parts Damaged . | . . . . . . . . . . . . Bothacking | -11 -10 -9 -8 -7 -6 -6 -5 -4 -4 -3 -2 ------------ Run | Yrd Mat Mat Mat Fac Fac DSF Fac Fac DSF Res Res Used RIF Installer . | . . . . . . . . . . . . Robots Hacked . | . . . . . . . . . . . . Non-combat . | . . . . . . . . . . . . Combat . | . . . . . . . . . . . . Robot Hacks Applied . | . . . . . . . . . . . . Relay Couplers Released . | . . . . . . . . . . . . Fabnet Peak Effective % 3 | . . . . . . . . 3 3 1 . Robots Rewired . | . . . . . . . . . . . . Allies Hacked . | . . . . . . . . . . . . Hacks Repelled . | . . . . . . . . . . . . Allies | -11 -10 -9 -8 -7 -6 -6 -5 -4 -4 -3 -2 -------- Run | Yrd Mat Mat Mat Fac Fac DSF Fac Fac DSF Res Res Total Allies . | . . . . . . . . . . . . Largest Group . | . . . . . . . . . . . . Highest-Rated Group . | . . . . . . . . . . . . Highest-Rated Ally . | . . . . . . . . . . . . Total Orders . | . . . . . . . . . . . . Ally Attacks . | . . . . . . . . . . . . Total Damage . | . . . . . . . . . . . . Kills . | . . . . . . . . . . . . Allies Corrupted . | . . . . . . . . . . . . Allies Melted . | . . . . . . . . . . . . Intel | -11 -10 -9 -8 -7 -6 -6 -5 -4 -4 -3 -2 ------- Run | Yrd Mat Mat Mat Fac Fac DSF Fac Fac DSF Res Res Active Infowar (turns) 533 | . . . . . 2 27 82 1 20 226 175 Sensors 507 | . . . . . 2 27 82 1 20 226 149 Terrain 71 | . . . . . . . . . . 71 . Structural 26 | . . . . . . . . . . . 26 Robot Analysis Total . | . . . . . . . . . . . . Derelict Logs Recovered . | . . . . . . . . . . . . Drone Launches . | . . . . . . . . . . . . Drone Recoveries . | . . . . . . . . . . . . Exploration | -11 -10 -9 -8 -7 -6 -6 -5 -4 -4 -3 -2 ------------- Run | Yrd Mat Mat Mat Fac Fac DSF Fac Fac DSF Res Res Turns Passed 959 | 14 71 66 43 175 18 27 82 1 20 226 216 Spaces Moved 2047 | 23 168 155 96 385 45 56 205 3 52 418 441 Core 94 | 23 18 . . . . . . . . . 53 Treads . | . . . . . . . . . . . . Legs . | . . . . . . . . . . . . Wheels . | . . . . . . . . . . . . Hover 776 | . . . . 334 45 56 205 3 52 81 . Flight 1177 | . 150 155 96 51 . . . . . 337 388 Fastest Speed 22 | 50 40 40 40 36 36 36 36 36 36 30 22 Average Speed 36 | 50 41 40 40 36 36 36 36 36 36 36 33 Slowest Speed 250 | 50 50 40 40 50 36 36 36 36 36 42 250 Overloaded Moves 1 | . . . . . . . . . . 1 . Propulsion Burnouts . | . . . . . . . . . . . . Robots Hopped 32 | . 4 3 3 . . . . . . 2 20 Potential Cave-ins 2 | . . . . . . . . . . 2 . Cave-ins Triggered . | . . . . . . . . . . . . Exploration Rate (%) 24 | 3 23 27 15 15 2 66 9 . 68 17 25 Regions Visited 11 Branch Regions . Pre-discovered Areas . | . . . . . . . . . . . . Known Exits Taken 5 | . . . 1 . 1 . 1 1 . 1 . Unknown Exits Taken 4 | 1 1 1 . 1 . . . . . . . Scrap Searched . | . . . . . . . . . . . . Spaces Dug 8 | . . . . . . . . . . 8 . Terrain Destroyed 34 | . . . . . . . . . . 34 . Melee 8 | . . . . . . . . . . 8 . Projectile . | . . . . . . . . . . . . AOE 26 | . . . . . . . . . . 26 . Terrain Rammed . | . . . . . . . . . . . . Walls Destroyed . | . . . . . . . . . . . . Machines Disabled . | . . . . . . . . . . . . Actions | -11 -10 -9 -8 -7 -6 -6 -5 -4 -4 -3 -2 --------- Run | Yrd Mat Mat Mat Fac Fac DSF Fac Fac DSF Res Res Total 2149 | 25 164 154 96 409 46 63 211 2 52 458 469 Wait 8 | . . . . 4 . . . . . . 4 Move 1976 | 22 159 149 89 384 44 55 204 2 51 413 404 Hop 28 | . 4 2 3 . . . . . . 2 17 Pick Up 19 | 3 . 1 2 5 . 4 1 . . 2 1 Fast Attach 33 | . 1 2 . 8 . 1 . . 1 7 13 Attach 14 | . . . . 3 2 . 4 . . 3 2 Detach 9 | . . . . 1 . . . . . 2 6 Swap 8 | . . . 1 . . . . . . 4 3 Drop 12 | . . . 1 . . 3 1 . . . 7 Fire 8 | . . . . . . . . . . 8 . Melee 28 | . . . . 3 . . 1 . . 12 12 Ram 1 | . . . . 1 . . . . . . . Kick . | . . . . . . . . . . . . Crush . | . . . . . . . . . . . . Escape Stasis 5 | . . . . . . . . . . 5 . Rewire . | . . . . . . . . . . . . Trap . | . . . . . . . . . . . . Miscellaneous . | . . . . . . . . . . . . Route ------- -11/Scrapyard -10/Materials (discovered 2 exits: *Mat / [Min]) -9/Materials -8/Materials (discovered 3 exits: *Fac x3) -7/Factory -6/Factory -6/DSF -5/Factory -4/Factory -4/DSF -3/Research (discovered 3 exits: *Res x3) -2/Research History --------- Turn | Location | Event 7 | -11/Scrapyard | Discovered new exit (range 15) 15 | -11/Scrapyard | Entered Materials 63 | -10/Materials | Discovered new exit (range 17) 82 | -10/Materials | Discovered new exit (range 9) 86 | -10/Materials | Entered another Materials area 86 | -9/Materials | Evolved 2 slots: Propulsion x2 150 | -9/Materials | Discovered new exit (range 5) 152 | -9/Materials | Entered another Materials area 152 | -8/Materials | Evolved 2 slots: Utility x2 183 | -8/Materials | Identified exit to Factory 195 | -8/Materials | Entered Factory 195 | -7/Factory | Evolved 2 slots: Power x1, Propulsion x1 304 | -7/Factory | Build established: Mutant 365 | -7/Factory | Discovered new exit (range 16) 370 | -7/Factory | Entered another Factory area 370 | -6/Factory | Evolved 2 slots: Utility x2 386 | -6/Factory | Identified exit to DSF 388 | -6/Factory | Entered DSF 407 | -6/DSF | Additional patrols routed to DSF 411 | -6/DSF | Discovered new exit (range 11) 415 | -6/DSF | Identified exit to Factory 415 | -6/DSF | Entered Factory 415 | -5/Factory | Evolved 2 slots: Propulsion x1, Utility x1 482 | -5/Factory | Spotted B-75 Beast 489 | -5/Factory | Discovered new exit (range 16) 497 | -5/Factory | Identified exit to Factory 497 | -5/Factory | Entered another Factory area 497 | -4/Factory | Evolved 2 slots: Propulsion x1, Utility x1 498 | -4/Factory | Identified exit to DSF 498 | -4/Factory | Entered DSF 512 | -4/DSF | Discovered new exit (range 14) 517 | -4/DSF | Additional patrols routed to DSF 518 | -4/DSF | Entered Research 518 | -3/Research | Evolved 2 slots: Power x1, Propulsion x1 561 | -3/Research | Lost 9 parts (1p3n5u) 638 | -3/Research | Identified exit to Research 688 | -3/Research | Found Prototype Device 688 | -3/Research | Identified Adv. Kinecellerator 744 | -3/Research | Entered another Research area 744 | -2/Research | Evolved 2 slots: Utility x2 755 | -2/Research | Lost 6 parts (1p2n3u) 941 | -2/Research | Core integrity fell below 50% 960 | -2/Research | Self-destructed Last Messages --------------- 00931_ Slug penetrates Wall. 00931_ Penetrated by Slug. 00931_ Xenon Bombardment Thruster destroyed. 00931_ K-01 Serf destroyed. 00931_ Xenon Bombardment Thruster destroyed. 00932_ T-07 Excavator destroyed. 00932_ K-01 Serf collects debris. 00934_ R-10 Processor collects Mic. Antimatter Reactor. 00934_ Q-thruster destroyed. 00937_ Slug penetrates K-01 Serf. 00937_ W-44 Eye sends out distress signal. 00937_ Slug penetrates Wall. 00938_ Scythe destroyed. 00942_ Slug penetrates Wall. 00943_ Structural Scanner destroyed. 00944_ Terminal disabled. 00960_ Connecting with Garrison Access... 00960_ ALERT: Suspicious activity at Garrison Access R004. Dispatching Investigation squad. 00960_ Garrison Access under remote control. Map ----- +----------------------------------------------------+ | ?????????????????????????????????? | | ?????????????????????????????????? | | ?????????????????????????????????? | | ?????????????????????????????????? | | ?????????????????????????????????? | | ??????????????????????????###????? | | ?????????????????????????? !????? | | ?????????????????????????? ????? | | ?????????????????????????"" "???? | | ?????????????????????????"" "???? | | ????????????????????????""" """?? | | ?????????????????????# ? | | ?????????????????????# ! | | ?????????????????????# """ """ | | ?????????????????????# """ """ | | ?????????????????????? """ """ | | ???????????????????????? ? | | ?????????????????????????? | | ?????????????????????????###+##### | | ?????????################# | | ?????????# + | | ???????### ###### | | ???????#"" #????# ### "" | | ???????#"" #????# #### "" | | ???????#"" = ###### # "" "T | | ???????#G@ sss s #""" "" | | ???????#"" # #"F " | | ???????#"" #########""" | | ???????#"" #????????""" | | ???????### =! #????????""" ] | | ?????????# !! #?????????## | | ?????????# !! #???????? | | ?????????#######??????? ##### | | ???????????????????????#### ###### | | ????????????????????????### ?????? | | ??????????????????????????#??????? | | ?????????????????????????????????? | | ?????????????????????????????????? | | ?????????????????????????????????? | | ?????????????????????????????????? | | ?????????????????????????????????? | | ?????????????????????????????????? | | ?????????????????????????????????? | | ?????????????????????????????????? | | ?????????????????????????????????? | | ?????????????????????????????????? | | ?????????????????????????????????? | | ?????????????????????????????????? | | ?????????????????????????????????? | | ?????????????????????????????????? | +----------------------------------------------------+ Best States ------------- Heat Dissipation 80 Coolant Potential 100 Energy Generation 55 Energy Capacity 300 Matter Stores 289 Matter Capacity 300 Sight Range 16 Robot Scan Range 15 Terrain Scan Range 14 Terrain Scan Density 10 Power Amplification 20 Armor Coverage 675 Propulsion Shielding 66 Evasion (%) 71 Item Schematics ----------------- None Robot Schematics ------------------ None Fabricated ------------ Nothing Repaired ---------- Nothing Alien Tech Used ----------------- None Achievements -------------- None Challenges ------------ None Game ------ Seed BladeDispersionLauncher Manual? 0 Play Time 00:23:57 Cumulative 232.4 hours Start 2025.08.05 @ 02:05:29 End 2025.08.05 @ 18:31:12 Sessions 2 Manual Loads 0 Difficulty Rogue Special Mode None Game No. 232 Rogue 232 Adventurer 0 Explorer 0 Win Type - Total 8 Types 3/0/3/1/0/0/0/0/0/1 Lore% 74 Gallery% 70 Achievement% 64 Wizard Run 0 Options --------- Layout 1 ASCII 0 Keyboard 1 Movement Numpad Keybinds 0 Fullscreen 1 Font 32/SmallcapsGlow Map View 77x35 Zoom Use 0% Tactical HUD 1 Map Filters NONE Filters NONE Steam 1 RUN: 01c0b819-102b-4072-8daa-72a006209144